bitfinex/quotes_SOLUSD_20250803
["timestamp","ask_amount","ask_price","bid_price","bid_amount"]
[1754261195919,37.7453176,162.04,162.03,0.72]
[1754261198297,37.7453176,162.04,162.03,0.06]
[1754261198608,38.3553176,162.04,162.03,0.06]
[1754261199221,37.7453176,162.04,162.03,0.06]
[1754261201215,33.16587489,162.04,162.03,0.06]
[1754261201411,37.73411215,162.04,162.03,0.06]
[1754261204231,30.86823726,162.04,162.03,0.06]
[1754261204523,37.73411215,162.04,162.03,0.76]
[1754261206212,37.73411215,162.04,162.03,0.06]
[1754261210039,37.73252023,162.04,162.03,0.06]
[1754261210227,37.73252023,162.04,162.03,0.76]
[1754261210627,37.73272511,162.04,162.03,0.76]
[1754261211270,6.89587489,162.06,162.03,0.76]
[1754261211413,4.86802198,162.05,162.03,0.76]
[1754261211610,0.3,162.05,162.03,0.76]
[1754261212648,0.33,162.06,162.03,0.76]
[1754261213145,11.43459305,162.05,162.03,0.76]
[1754261213449,7.16587489,162.04,162.03,0.76]
[1754261214119,11.73477728,162.04,162.03,0.76]
[1754261216253,11.73477728,162.04,162.03,0.06]
[1754261217059,11.73477728,162.04,162.03,0.76]
[1754261218817,11.73477728,162.04,162.03,0.06]
[1754261219317,12.34477728,162.04,162.03,0.06]
[1754261219847,11.73477728,162.04,162.03,0.06]
[1754261220347,11.73477728,162.04,162.03,0.76]
[1754261223531,11.76477728,162.04,162.03,0.76]
[1754261224249,37.76477728,162.04,162.03,0.76]
[1754261226217,30.89890239,162.04,162.03,0.76]
[1754261227225,30.59890239,162.04,162.03,0.76]
[1754261228823,4.59890239,162.04,162.03,0.76]
[1754261230367,4.59890239,162.04,162.03,7.62587489]
[1754261233358,4.59890239,162.04,162.03,0.76]
[1754261235247,0.03,162.04,162.03,0.76]
[1754261235776,0.03,162.04,162.03,7.62587489]
[1754261246287,0.03,162.04,162.03,50.54587489]
[1754261248886,0.03,162.04,162.03,48.07350085]
[1754261250492,4.6119076,162.04,162.03,42.98]
[1754261250677,4.6119076,162.04,162.03,43.68]
[1754261253189,4.6119076,162.04,162.03,42.98]
[1754261254594,4.6119076,162.04,162.03,43.68]
[1754261254794,4.6119076,162.04,162.03,48.07350085]
[1754261255795,4.6119076,162.04,162.03,43.68]
[1754261256867,4.6119076,162.04,162.03,42.98]
[1754261259273,4.6119076,162.04,162.03,43.68]
[1754261259697,4.6119076,162.04,162.03,48.07350085]
[1754261260366,4.6119076,162.04,162.03,43.68]
[1754261268391,4.63341781,162.04,162.03,43.68]
[1754261271280,4.63718343,162.04,162.03,43.68]
[1754261271518,4.63718343,162.04,162.03,48.07350085]
[1754261272388,4.6391115,162.04,162.03,48.07350085]
[1754261272589,4.6391115,162.04,162.03,43.68]
[1754261272791,4.6391115,162.04,162.03,48.07350085]
[1754261278619,4.6391115,162.04,162.03,54.24519744]
[1754261279612,0.03,162.04,162.03,54.24519744]
[1754261280186,0.03,162.06,162.05,42.78468397]
[1754261280388,0.03,162.06,162.05,90.6952783]
[1754261280719,0.03,162.06,162.05,93.8483073]
[1754261281688,0.03,162.06,162.05,100.01924219]
[1754261319026,0.03,162.07,162.06,16.78468397]
[1754261319229,0.03,162.07,162.06,21.82818482]
[1754261319464,0.03,162.08,162.06,21.82818482]
[1754261319696,15.41922906,162.15,162.08,16.78468397]
[1754261319899,0.61,162.14,162.1,21.96750425]
[1754261320196,0.61,162.14,162.1,64.75218822]
[1754261320402,16.02922906,162.15,162.1,66.01909136]
[1754261320569,16.02922906,162.15,162.1,65.40218822]
[1754261320769,16.02922906,162.15,162.1,81.43141722]
[1754261321170,16.02922906,162.15,162.1,87.60044868]
[1754261321807,16.02922906,162.15,162.1,88.21735182]
[1754261322264,15.41922906,162.15,162.13,26.0]
[1754261322467,0.71,162.16,162.14,73.8702518]
[1754261323276,0.1,162.16,162.15,21.17818482]
[1754261323479,0.1,162.16,162.15,21.82818482]
[1754261324283,0.1,162.16,162.15,27.99531402]
[1754261324670,0.1,162.21,162.18,26.0]
[1754261324891,0.1,162.21,162.2,4.39350085]
[1754261325091,0.1,162.21,162.2,21.17818482]
[1754261325291,0.1,162.21,162.2,21.84818482]
[1754261326411,0.1,162.21,162.2,28.01341293]
[1754261326571,0.1,162.23,162.22,26.0]
[1754261326892,0.1,162.23,162.22,76.30047673]
[1754261327204,0.1,162.23,162.22,76.97047673]
[1754261327401,0.1,162.23,162.22,93.7551607]
[1754261328903,0.1,162.23,162.22,99.9196287]
[1754261331207,0.21,162.26,162.25,42.78468397]
[1754261331401,0.21,162.26,162.25,93.08504671]
[1754261331573,6.84402993,162.32,162.26,16.78468397]
[1754261331773,6.84402993,162.32,162.27,49.68402993]
[1754261333910,6.84402993,162.32,162.28,14.387383]
[1754261334110,6.84402993,162.32,162.29,42.84]
[1754261334309,6.84402993,162.31,162.29,42.84]
[1754261334609,0.3,162.34,162.3,42.84]
[1754261334826,6.84402993,162.31,162.3,42.84]
[1754261341923,6.84402993,162.31,162.3,42.82]
[1754261342318,26.0,162.32,162.3,42.82]
[1754261342507,6.84402993,162.31,162.3,42.82]
[1754261343406,7.05402993,162.31,162.3,42.82]
[1754261345117,6.84402993,162.31,162.3,42.82]
[1754261347517,7.14402993,162.31,162.3,42.82]
[1754261347702,6.84402993,162.31,162.3,42.82]
[1754261348430,26.21,162.32,162.3,42.82]
[1754261348604,4.38129527,162.31,162.3,42.82]
[1754261351131,4.89129527,162.31,162.3,42.82]
[1754261351802,4.38129527,162.31,162.3,42.82]
[1754261355633,26.0,162.32,162.3,42.82]
[1754261355808,4.38129527,162.31,162.3,42.82]
[1754261361831,4.38129527,162.31,162.25,0.06]
[1754261362021,4.38129527,162.27,162.26,42.82]
[1754261362222,4.38129527,162.27,162.26,43.54]
[1754261362447,4.38129527,162.28,162.26,43.54]
[1754261362739,0.3,162.3,162.27,0.72]
[1754261362945,4.38129527,162.28,162.27,0.72]
[1754261364414,4.38129527,162.29,162.27,0.72]
[1754261364642,4.38129527,162.3,162.27,0.72]
[1754261367354,4.38129527,162.29,162.27,0.72]
[1754261368147,8.5322879,162.3,162.27,0.72]
[1754261368330,4.38129527,162.3,162.27,0.72]
[1754261369218,8.53616233,162.3,162.27,0.72]
[1754261369429,4.38129527,162.3,162.27,0.72]
[1754261369929,8.53963257,162.3,162.27,0.72]
[1754261370159,4.38129527,162.3,162.27,0.72]
[1754261371254,4.62187765,162.29,162.27,0.72]
[1754261371436,4.62187765,162.28,162.27,0.72]
[1754261372452,9.00317292,162.28,162.27,0.72]
[1754261372959,4.62187765,162.28,162.27,0.72]
[1754261382123,4.62434779,162.28,162.27,0.72]
[1754261383960,4.62434779,162.28,162.27,5.71755212]
[1754261384135,4.62434779,162.28,162.27,4.99755212]
[1754261384336,0.03,162.31,162.27,5.67755212]
[1754261384536,4.62307182,162.3,162.27,4.99755212]
[1754261384747,4.62307182,162.29,162.28,0.68]
[1754261386564,4.62220366,162.29,162.28,0.68]
[1754261391553,4.62220366,162.29,162.26,47.88129527]
[1754261391763,4.62129527,162.31,162.26,43.5]
[1754261391974,4.62084799,162.3,162.26,47.88129527]
[1754261392173,4.62084799,162.29,162.27,0.68]
[1754261392469,4.62129527,162.31,162.27,0.68]
[1754261392676,4.62067938,162.3,162.27,0.68]
[1754261392862,4.62067938,162.29,162.27,0.68]
[1754261393076,4.38129527,162.3,162.25,23.00793272]
[1754261393374,4.38129527,162.27,162.26,42.8]
[1754261393980,9.00248733,162.27,162.26,42.8]
[1754261394180,9.21248733,162.27,162.25,0.06]
[1754261394385,0.21,162.27,162.26,42.8]
[1754261394679,9.00266751,162.27,162.26,42.8]
[1754261395356,9.21266751,162.27,162.25,0.06]
[1754261395557,9.00266751,162.26,162.25,0.06]
[1754261395874,9.00266751,162.26,162.25,42.88]
[1754261397076,4.62137224,162.26,162.25,42.88]
[1754261397256,9.21258813,162.26,162.25,42.88]
[1754261398045,9.21258813,162.26,162.25,0.06]
[1754261400261,13.36916762,162.26,162.25,0.06]
[1754261400448,18.51180504,162.26,162.24,0.06]
[1754261400649,26.0,162.22,162.19,0.06]
[1754261400855,4.38129527,162.2,162.19,0.06]
[1754261401257,4.59129527,162.2,162.19,0.06]
[1754261401680,4.38129527,162.2,162.19,0.06]
[1754261402677,11.47070918,162.2,162.19,0.06]
[1754261404692,4.61546256,162.2,162.19,0.74]
[1754261404899,11.47070918,162.2,162.19,0.06]
[1754261406189,11.68070918,162.2,162.19,0.06]
[1754261407573,11.47070918,162.2,162.19,0.06]
[1754261407894,6.85524662,162.2,162.19,0.06]
[1754261408067,11.45471358,162.2,162.19,0.06]
[1754261408875,6.85524662,162.2,162.19,0.06]
[1754261410595,4.59376179,162.2,162.19,0.74]
[1754261410801,6.85524662,162.21,162.19,0.74]
[1754261411567,0.3,162.24,162.19,0.74]
[1754261411568,6.85524662,162.22,162.19,0.74]
[1754261414305,6.85524662,162.21,162.19,0.06]
[1754261414512,6.85524662,162.21,162.2,0.72]
[1754261416370,6.85524662,162.21,162.19,0.78]
[1754261420089,6.85524662,162.2,162.19,0.06]
[1754261420696,7.06524662,162.2,162.19,0.06]
[1754261425211,6.85524662,162.2,162.19,0.06]
[1754261426397,26.0,162.2,162.19,0.78]
[1754261426602,32.85524662,162.2,162.19,0.78]
[1754261427118,32.85524662,162.2,162.19,0.06]
[1754261428521,37.44154226,162.2,162.19,0.06]
[1754261434852,4.58629564,162.2,162.19,0.78]
[1754261435141,7.15524662,162.23,162.19,0.78]
[1754261435352,4.59409704,162.22,162.19,0.78]
[1754261435533,4.59409704,162.21,162.19,0.78]
[1754261435710,6.85524662,162.22,162.19,0.78]
[1754261436056,4.59612634,162.21,162.19,0.78]
[1754261436338,6.85524662,162.22,162.19,0.78]
[1754261436542,4.59631952,162.21,162.19,0.78]
[1754261436724,6.85524662,162.22,162.19,0.78]
[1754261436924,4.59868316,162.21,162.19,0.78]
[1754261437124,6.85524662,162.22,162.19,0.78]
[1754261437333,4.59904432,162.21,162.19,0.78]
[1754261437537,4.59904432,162.2,162.19,0.78]
[1754261437844,6.88524662,162.24,162.19,7.63524662]
[1754261438143,4.60146169,162.23,162.2,1.33652281]
[1754261438440,4.60146169,162.22,162.21,0.72]
[1754261438932,4.60146169,162.23,162.21,0.72]
[1754261439103,4.60146169,162.22,162.21,0.72]
[1754261439307,0.03,162.24,162.21,0.72]
[1754261439509,4.60563031,162.23,162.21,0.72]
[1754261439710,0.03,162.24,162.21,0.72]
[1754261439933,4.60548167,162.23,162.21,0.72]
[1754261440140,0.03,162.24,162.21,0.72]
[1754261440318,4.60544936,162.23,162.21,0.72]
[1754261440519,0.03,162.24,162.21,0.72]
[1754261440839,4.60805062,162.23,162.21,0.72]
[1754261441046,0.03,162.24,162.21,0.72]
[1754261441222,4.60792337,162.23,162.21,0.72]
[1754261441429,4.60975412,162.22,162.21,0.72]
[1754261442142,0.03,162.24,162.21,0.72]
[1754261442328,0.03,162.24,162.23,6.85524662]
[1754261442716,0.03,162.24,162.23,7.57524662]
[1754261442916,0.03,162.26,162.23,24.35993059]
[1754261443242,0.03,162.26,162.21,6.16484573]
[1754261443243,0.03,162.26,162.25,23.63993059]
[1754261443580,0.03,162.26,162.25,24.35993059]
[1754261444427,0.03,162.26,162.25,30.52325878]
[1754261447445,0.03,162.26,162.25,24.35993059]
[1754261447647,0.03,162.26,162.25,30.52325878]
[1754261448023,0.03,162.26,162.25,24.35993059]
[1754261450429,0.03,162.26,162.25,30.52325878]
[1754261458357,0.03,162.26,162.25,24.35993059]
[1754261460962,0.03,162.26,162.25,30.52325878]
[1754261472650,0.03,162.26,162.25,33.60941359]
[1754261473670,0.03,162.26,162.25,31.13959159]
[1754261474464,0.03,162.26,162.25,73.21959159]
[1754261474861,0.03,162.26,162.25,75.68941359]
[1754261475065,0.03,162.26,162.25,76.36941359]
[1754261475263,0.03,162.26,162.25,73.89959159]
[1754261475958,0.03,162.26,162.25,76.36941359]
[1754261476367,0.03,162.26,162.25,19.87083878]
[1754261476579,0.03,162.26,162.25,67.0562634]
[1754261476753,0.03,162.26,162.25,64.58166792]
[1754261478780,0.03,162.26,162.25,67.04563824]
[1754261482656,0.03,162.26,162.25,73.88896643]
[1754261484088,0.03,162.26,162.25,67.04434497]
[1754261484257,0.03,162.26,162.25,73.88896643]
[1754261487565,0.03,162.26,162.25,67.72563824]
[1754261488460,0.03,162.26,162.25,73.88896643]
[1754261488886,0.03,162.26,162.25,31.08896643]
[1754261489200,0.03,162.26,162.25,73.88896643]
[1754261490683,0.03,162.28,162.25,73.88896643]
[1754261490684,0.03,162.28,162.27,42.78468397]
[1754261490902,0.03,162.28,162.27,93.04556228]
[1754261491195,0.03,162.28,162.27,93.72556228]
[1754261492574,0.03,162.28,162.27,99.88813083]
[1754261493278,0.03,162.28,162.25,16.78468397]
[1754261493590,0.03,162.28,162.27,6.84462146]
[1754261493996,0.27,162.28,162.27,6.84462146]
[1754261494175,0.27,162.28,162.25,6.84462146]
[1754261494384,0.27,162.28,162.26,42.86]
[1754261495075,4.62478041,162.27,162.26,42.86]
[1754261495276,4.86478041,162.27,162.26,42.86]
[1754261496710,11.70940187,162.27,162.26,42.86]
[1754261496889,15.87017461,162.27,162.26,42.86]
[1754261497507,15.87017461,162.27,162.24,0.06]
[1754261497709,9.08555315,162.26,162.25,42.88]
[1754261497883,15.93017461,162.26,162.25,42.88]
[1754261498089,16.17017461,162.26,162.25,42.88]
[1754261500112,16.16522645,162.26,162.25,42.88]
[1754261500583,12.00445371,162.26,162.25,42.88]
[1754261500784,5.15983225,162.26,162.25,42.88]
[1754261501000,12.00445371,162.26,162.25,42.88]
[1754261501396,5.15983225,162.26,162.25,42.88]
[1754261501595,12.00445371,162.26,162.25,42.88]
[1754261504718,12.00445371,162.26,162.24,0.06]
[1754261504894,4.85983225,162.25,162.24,0.06]
[1754261505097,11.70445371,162.25,162.24,0.06]
[1754261506901,4.85983225,162.25,162.24,0.06]
[1754261507448,12.00445371,162.25,162.24,0.06]
[1754261510197,11.76445371,162.25,162.24,0.06]
[1754261510993,11.46445371,162.25,162.24,0.06]
[1754261514733,4.61983225,162.25,162.24,0.74]
[1754261515925,6.87462146,162.28,162.24,0.74]
[1754261516122,4.59964241,162.27,162.24,0.74]
[1754261516317,4.59964241,162.26,162.24,0.74]
[1754261516550,0.03,162.28,162.24,0.74]
[1754261516755,4.59980478,162.27,162.24,0.74]
[1754261517054,4.59980478,162.26,162.24,7.58462146]
[1754261517249,0.03,162.28,162.25,0.68]
[1754261517428,4.60000786,162.27,162.26,42.9]
[1754261517627,4.60000786,162.27,162.26,43.58]
[1754261527184,4.60000786,162.27,162.26,50.42462146]
[1754261528061,0.03,162.28,162.26,50.42462146]
[1754261528235,0.03,162.28,162.27,0.68]
[1754261528439,4.63299431,162.28,162.27,0.68]
[1754261528639,4.63299352,162.28,162.27,0.68]
[1754261531652,4.63457746,162.28,162.27,0.68]
[1754261536477,4.63457746,162.28,162.27,5.06092022]
[1754261536652,4.63457746,162.28,162.27,4.38092022]
[1754261536854,4.63457746,162.28,162.27,5.06092022]
[1754261537261,4.63457746,162.28,162.27,0.68]
[1754261538051,4.63457746,162.28,162.27,5.06092022]
[1754261538462,4.63457746,162.28,162.27,0.68]
[1754261539689,4.63457746,162.28,162.27,5.06092022]
[1754261540478,4.63457746,162.28,162.27,0.68]
[1754261549974,4.64041373,162.28,162.27,0.68]
[1754261550390,4.64074636,162.28,162.27,0.68]
[1754261552008,4.64074636,162.28,162.26,47.96092022]
[1754261552323,4.61127831,162.27,162.26,43.58]
[1754261552772,4.61136306,162.27,162.26,43.58]
[1754261553368,4.61136306,162.27,162.26,47.96092022]
[1754261555692,4.61368253,162.27,162.26,47.96092022]
[1754261557984,4.61368253,162.27,162.26,71.52484737]
[1754261558180,4.61597981,162.27,162.26,71.52484737]
[1754261559273,0.03,162.28,162.26,71.52484737]
[1754261559505,0.03,162.28,162.27,5.06092022]
[1754261559680,4.64695332,162.28,162.27,5.06092022]
[1754261561505,4.64695332,162.28,162.27,4.38092022]
[1754261561693,4.64695332,162.28,162.27,5.06092022]
[1754261566316,4.64695332,162.28,162.27,31.06092022]
[1754261566523,4.64695332,162.28,162.27,54.00817274]
[1754261566524,0.03,162.28,162.27,54.00817274]
[1754261574576,0.03,162.28,162.27,28.00817274]
[1754261574756,0.03,162.28,162.27,30.47768974]
[1754261583260,0.03,162.28,162.27,26.09676952]
[1754261583436,0.03,162.28,162.27,30.47768974]
[1754261603133,0.03,162.28,162.27,23.63512119]
[1754261603408,0.27,162.28,162.25,0.06]
[1754261603578,0.27,162.28,162.26,42.8]
[1754261603770,0.27,162.28,162.25,4.44092022]
[1754261603973,0.27,162.28,162.26,42.8]
[1754261604185,0.27,162.28,162.25,4.44092022]
[1754261604401,0.27,162.28,162.26,42.8]
[1754261605208,4.6150784,162.27,162.26,42.8]
[1754261605387,4.8550784,162.27,162.26,42.8]
[1754261605775,4.8550784,162.27,162.26,47.18092022]
[1754261605989,0.27,162.28,162.26,47.18092022]
[1754261606303,0.27,162.28,162.27,4.38092022]
[1754261606480,4.88438453,162.28,162.27,4.38092022]
[1754261606901,4.64438453,162.28,162.27,4.38092022]
[1754261607980,4.64438453,162.28,162.26,48.9629355]
[1754261607981,4.64438453,162.28,162.26,49.57923033]
[1754261608181,0.03,162.28,162.27,4.38092022]
[1754261610776,0.03,162.28,162.27,27.97817274]
[1754261610978,0.03,162.28,162.27,30.44784274]
[1754261622519,0.03,162.28,162.27,72.59784274]
[1754261622810,0.03,162.28,162.27,68.21692252]
[1754261623013,0.03,162.28,162.27,72.59784274]
[1754261623204,0.03,162.28,162.27,73.21409959]
[1754261624218,0.03,162.28,162.27,72.59784274]
[1754261624511,0.27,162.28,162.27,4.38092022]
[1754261624692,0.27,162.28,162.27,47.18092022]
[1754261625612,0.27,162.28,162.27,30.38092022]
[1754261625817,0.27,162.28,162.27,47.18092022]
[1754261626186,0.03,162.28,162.27,47.18092022]
[1754261627415,0.27,162.28,162.27,47.18092022]
[1754261627611,0.27,162.28,162.26,4.38092022]
[1754261627830,0.27,162.28,162.25,4.44092022]
[1754261628024,0.27,162.28,162.26,42.8]
[1754261628235,0.27,162.28,162.26,47.18092022]
[1754261630248,0.03,162.28,162.27,4.38092022]
[1754261630534,0.03,162.28,162.27,5.09092022]
[1754261630732,0.03,162.28,162.27,9.83328167]
[1754261631832,0.03,162.28,162.27,15.99585022]
[1754261633120,0.03,162.28,162.27,32.78053419]
[1754261637038,0.03,162.28,162.27,75.58053419]
[1754261637836,0.03,162.28,162.27,76.19679104]
[1754261638047,0.03,162.28,162.27,78.66630804]
[1754261652645,0.03,162.28,162.27,75.37995357]
[1754261663458,0.03,162.29,162.28,42.78468397]
[1754261663658,0.03,162.29,162.28,49.33161117]
[1754261664059,0.03,162.3,162.28,49.14868497]
[1754261664266,0.03,162.31,162.3,29.184636]
[1754261664479,0.03,162.31,162.3,61.34606545]
[1754261664680,0.03,162.31,162.3,62.05606545]
[1754261664987,0.03,162.31,162.3,64.52527745]
[1754261665200,0.03,162.31,162.3,81.30996142]
[1754261665357,0.03,162.33,162.31,42.78468397]
[1754261665559,0.03,162.33,162.32,49.25299422]
[1754261665787,0.03,162.33,162.32,49.96299422]
[1754261666588,0.03,162.33,162.32,56.1236645]
[1754261673483,0.03,162.33,162.32,13.3236645]
[1754261673686,0.03,162.33,162.32,6.45299422]
[1754261673880,0.27,162.33,162.32,5.8369272]
[1754261674080,0.27,162.33,162.32,48.6369272]
[1754261674896,0.27,162.33,162.32,42.8]
[1754261675204,0.27,162.33,162.32,48.6369272]
[1754261678449,0.03,162.33,162.32,48.6369272]
[1754261679250,0.27,162.33,162.32,48.6369272]
[1754261679829,0.27,162.33,162.32,42.8]
[1754261680029,0.27,162.33,162.32,48.6369272]
[1754261681857,0.03,162.33,162.32,48.6369272]
[1754261683861,0.03,162.33,162.32,56.1236645]
[1754261685960,0.03,162.33,162.32,49.96299422]
[1754261686255,0.03,162.33,162.32,48.6369272]
[1754261690642,0.03,162.33,162.32,49.3169272]
[1754261691366,0.03,162.33,162.32,56.0936645]
[1754261691536,0.03,162.33,162.32,72.87834847]
[1754261695449,0.03,162.33,162.32,75.34710347]
[1754261699179,0.03,162.33,162.32,75.32710347]
[1754261700358,0.03,162.33,162.32,59.56468397]
[1754261700682,0.03,162.33,162.32,65.40161117]
[1754261700889,0.03,162.33,162.32,22.62161117]
[1754261701186,0.27,162.33,162.32,42.78]
[1754261702151,0.27,162.33,162.31,0.06]
[1754261702376,0.27,162.33,162.32,42.78]
[1754261702565,0.03,162.33,162.32,42.78]
[1754261702969,0.03,162.33,162.31,0.06]
[1754261702970,0.27,162.33,162.31,0.06]
[1754261703179,0.27,162.33,162.32,42.78]
[1754261703382,4.64471004,162.33,162.32,51.90218818]
[1754261706075,4.64471004,162.33,162.32,52.58218818]
[1754261706464,4.64471004,162.33,162.32,51.90218818]
[1754261706686,4.64471004,162.33,162.32,42.78]
[1754261707072,4.88471004,162.33,162.32,42.78]
[1754261708992,4.88471004,162.33,162.32,26.0]
[1754261709186,4.88471004,162.33,162.32,68.78]
[1754261709585,4.88471004,162.33,162.32,42.78]
[1754261710984,4.64471004,162.33,162.32,42.78]
[1754261713075,4.64471004,162.33,162.32,43.46]
[1754261713474,4.64471004,162.33,162.32,52.58218818]
[1754261715091,4.64471004,162.33,162.32,43.46]
[1754261715293,4.64471004,162.33,162.32,52.58218818]
[1754261715983,4.64471004,162.33,162.32,43.46]
[1754261716177,4.64471004,162.33,162.32,52.58218818]
[1754261717403,4.64471004,162.33,162.32,69.98293917]
[1754261717606,4.64471004,162.33,162.32,76.14360945]
[1754261718306,0.03,162.33,162.32,76.14360945]
[1754261722913,0.03,162.33,162.32,78.61251745]
[1754261723207,0.03,162.33,162.32,76.14360945]
[1754261726709,0.03,162.33,162.32,72.85668516]
[1754261726908,0.03,162.33,162.32,17.40075099]
[1754261727211,4.64380755,162.33,162.32,48.61526389]
[1754261727510,0.03,162.33,162.32,48.61526389]
[1754261728703,0.03,162.33,162.32,51.90046389]
[1754261730288,4.64413719,162.33,162.32,42.78]
[1754261730700,4.88413719,162.33,162.32,42.78]
[1754261731504,4.64413719,162.33,162.32,42.78]
[1754261732013,4.64413719,162.33,162.32,68.78]
[1754261736320,4.64413719,162.33,162.31,9.18046389]
[1754261736549,0.03,162.33,162.32,42.78]
[1754261736701,4.6442562,162.33,162.32,42.78]
[1754261737925,14.00472009,162.33,162.31,0.06]
[1754261738233,5.1542562,162.32,162.31,0.06]
[1754261738524,14.27472009,162.32,162.31,42.84]
[1754261739036,13.99851468,162.32,162.31,42.84]
[1754261740621,13.75851468,162.32,162.31,0.06]
[1754261740817,18.15040815,162.32,162.31,42.84]
[1754261741005,18.12661356,162.32,162.31,42.84]
[1754261741850,18.15040815,162.32,162.31,42.84]
[1754261742621,17.91040815,162.32,162.31,42.84]
[1754261743405,13.75851468,162.32,162.31,42.84]
[1754261744226,17.90930541,162.32,162.31,42.84]
[1754261744421,17.9068685,162.32,162.31,42.84]
[1754261744821,17.88307391,162.32,162.31,42.84]
[1754261745831,18.12307391,162.32,162.31,42.84]
[1754261746203,17.88307391,162.32,162.31,42.84]
[1754261747529,17.88106959,162.32,162.31,42.84]
[1754261748829,17.90486418,162.32,162.31,42.84]
[1754261749338,13.75457443,162.32,162.31,42.84]
[1754261750015,18.14056676,162.32,162.31,42.84]
[1754261750739,14.86184545,162.32,162.31,42.84]
[1754261751515,14.62184545,162.32,162.31,42.84]
[1754261753011,10.47472763,162.32,162.31,42.84]
[1754261753402,10.47472763,162.32,162.31,42.86]
[1754261753607,10.45093304,162.32,162.31,42.86]
[1754261755524,36.45093304,162.32,162.31,43.52]
[1754261755833,36.45093304,162.32,162.31,42.86]
[1754261756021,36.45093304,162.32,162.31,43.52]
[1754261756606,4.60919046,162.32,162.31,43.52]
[1754261759537,13.72932289,162.32,162.31,42.86]
[1754261761242,13.96932289,162.32,162.31,42.86]
[1754261761450,13.75311748,162.32,162.31,42.86]
[1754261762926,17.89683191,162.32,162.31,42.86]
[1754261763114,18.13683191,162.32,162.31,42.86]
[1754261764732,18.13683191,162.32,162.31,0.06]
[1754261765416,17.89683191,162.32,162.31,0.06]
[1754261765759,8.77296692,162.32,162.31,0.06]
[1754261766038,17.89683191,162.32,162.31,0.06]
[1754261767520,17.92683191,162.32,162.31,0.06]
[1754261773573,8.80296692,162.32,162.31,0.06]
[1754261773776,17.92683191,162.32,162.31,0.06]
[1754261777944,17.92683191,162.32,162.31,0.74]
[1754261778762,14.6443245,162.32,162.31,0.74]
[1754261779865,8.80296692,162.32,162.31,0.74]
[1754261780055,14.6443245,162.32,162.31,0.74]
[1754261782960,8.80296692,162.32,162.31,0.74]
[1754261783267,8.77917233,162.32,162.31,0.74]
[1754261786670,14.62052991,162.32,162.31,0.06]
[1754261789865,14.62052991,162.32,162.31,0.74]
[1754261790269,8.77917233,162.32,162.31,0.74]
[1754261790573,8.7944468,162.32,162.31,0.74]
[1754261791858,3.9154579,162.32,162.31,6.58135758]
[1754261792672,3.9154579,162.32,162.31,0.74]
[1754261792876,0.03,162.32,162.31,0.06]
[1754261793079,10.72915724,162.32,162.31,0.06]
[1754261794054,10.75295183,162.32,162.31,0.06]
[1754261794974,36.05295183,162.32,162.31,0.74]
[1754261795577,36.05295183,162.32,162.31,0.06]
[1754261795782,36.05295183,162.32,162.31,0.74]
[1754261796082,10.02915724,162.32,162.31,0.74]
[1754261796250,36.02915724,162.32,162.31,0.06]
[1754261798076,36.72915724,162.32,162.31,0.06]
[1754261798779,36.02915724,162.32,162.31,0.06]
[1754261799770,36.05295183,162.32,162.31,0.06]
[1754261800659,36.75295183,162.32,162.31,0.06]
[1754261802398,10.05295183,162.32,162.31,0.06]
[1754261803876,14.67429548,162.32,162.31,0.06]
[1754261808302,14.67429548,162.32,162.31,0.74]
[1754261808782,14.67429548,162.32,162.31,0.06]